[Event "*** SCC Grand Prix: Titled Tuesday Blitz"]
[Site "Chess.com"]
[Date "2020.06.23"]
[Round "2"]
[White "Azoulas1"]
[Black "CalinGheorghiu"]
[Result "0-1"]
[WhiteElo "2029"]
[BlackElo "2381"]
[TimeControl "180+1"]
[EndTime "10:18:22 PDT"]
[Termination "CalinGheorghiu won on time"]

1. e4 {[%clk 0:03:00.9]} 1... c5 {[%clk 0:02:58.8]} 2. Nf3 {[%clk 0:03:00.3]}
2... d6 {[%clk 0:02:57.7]} 3. d4 {[%clk 0:03:00]} 3... cxd4 {[%clk 0:02:58.3]}
4. Nxd4 {[%clk 0:02:59.3]} 4... Nf6 {[%clk 0:02:58.8]} 5. Nc3 {[%clk 0:02:57.9]}
5... a6 {[%clk 0:02:59.3]} 6. Bg5 {[%clk 0:02:55.7]} 6... e6 {[%clk 0:02:58.8]}
7. f4 {[%clk 0:02:49.8]} 7... h6 {[%clk 0:02:58.1]} 8. Bxf6 {[%clk 0:02:47.8]}
8... Qxf6 {[%clk 0:02:51.3]} 9. Qd2 {[%clk 0:02:46]} 9... Nc6 {[%clk 0:02:45.6]}
10. Nxc6 {[%clk 0:02:43.4]} 10... bxc6 {[%clk 0:02:45.3]} 11. O-O-O {[%clk
0:02:42.1]} 11... Be7 {[%clk 0:02:44.9]} 12. g4 {[%clk 0:02:34.4]} 12... g5
{[%clk 0:02:04.3]} 13. f5 {[%clk 0:02:20]} 13... Rb8 {[%clk 0:01:57.9]} 14. Bc4
{[%clk 0:02:10.2]} 14... O-O {[%clk 0:01:25.2]} 15. Bb3 {[%clk 0:02:00.9]} 15...
Rd8 {[%clk 0:01:22.4]} 16. Kb1 {[%clk 0:01:27.3]} 16... c5 {[%clk 0:01:10.8]}
17. Qe3 {[%clk 0:00:59.4]} 17... Kg7 {[%clk 0:00:52.1]} 18. Rhg1 {[%clk
0:00:49.7]} 18... Qe5 {[%clk 0:00:47.4]} 19. Rg2 {[%clk 0:00:43.2]} 19... Bf6
{[%clk 0:00:46.2]} 20. Ka1 {[%clk 0:00:35.2]} 20... Bd7 {[%clk 0:00:38.2]} 21.
h4 {[%clk 0:00:30.7]} 21... Rb4 {[%clk 0:00:32.2]} 22. fxe6 {[%clk 0:00:18]}
22... fxe6 {[%clk 0:00:30.1]} 23. hxg5 {[%clk 0:00:15.3]} 23... Bxg5 {[%clk
0:00:28.3]} 24. Qd3 {[%clk 0:00:14.9]} 24... Bb5 {[%clk 0:00:20]} 25. Nxb5
{[%clk 0:00:13.2]} 25... axb5 {[%clk 0:00:20.1]} 26. c3 {[%clk 0:00:13]} 26...
c4 {[%clk 0:00:19.3]} 27. Qd2 {[%clk 0:00:11.3]} 27... Rxb3 {[%clk 0:00:19.6]}
28. Qe1 {[%clk 0:00:03.5]} 28... Ra8 {[%clk 0:00:18.6]} 29. Rf2 {[%clk
0:00:01.7]} 29... Qc5 {[%clk 0:00:16]} 30. Qf1 {[%clk 0:00:01]} 30... Ra7 {[%clk
0:00:15.3]} 0-1

[Event "*** SCC Grand Prix: Titled Tuesday Blitz"]
[Site "Chess.com"]
[Date "2020.06.23"]
[Round "2"]
[White "2346PL"]
[Black "ChessQueen"]
[Result "0-1"]
[WhiteElo "2472"]
[BlackElo "2705"]
[TimeControl "180+1"]
[EndTime "10:18:23 PDT"]
[Termination "ChessQueen won by resignation"]

1. d4 {[%clk 0:03:00.9]} 1... Nf6 {[%clk 0:02:59.5]} 2. Bg5 {[%clk 0:03:00.9]}
2... d5 {[%clk 0:02:57.6]} 3. e3 {[%clk 0:03:00.4]} 3... c5 {[%clk 0:02:56.8]}
4. c3 {[%clk 0:02:57.8]} 4... Ne4 {[%clk 0:02:48]} 5. Bf4 {[%clk 0:02:57.4]}
5... g5 {[%clk 0:02:42.7]} 6. Be5 {[%clk 0:02:55.9]} 6... f6 {[%clk 0:02:27.6]}
7. Qh5+ {[%clk 0:02:48.7]} 7... Kd7 {[%clk 0:02:27.9]} 8. Bxb8 {[%clk
0:02:40.8]} 8... Rxb8 {[%clk 0:02:27.6]} 9. Nf3 {[%clk 0:02:19.9]} 9... Qb6
{[%clk 0:02:23.3]} 10. b3 {[%clk 0:01:53.4]} 10... Kc7 {[%clk 0:02:18.3]} 11.
Nfd2 {[%clk 0:01:46.1]} 11... Bf5 {[%clk 0:02:11.6]} 12. Nxe4 {[%clk 0:01:39.3]}
12... Bxe4 {[%clk 0:02:09]} 13. Nd2 {[%clk 0:01:39.3]} 13... Bg6 {[%clk
0:02:09]} 14. Qf3 {[%clk 0:01:39.5]} 14... Rd8 {[%clk 0:02:08.7]} 15. h4 {[%clk
0:01:37.9]} 15... gxh4 {[%clk 0:01:40.2]} 16. Rxh4 {[%clk 0:01:36.8]} 16... e5
{[%clk 0:01:38.9]} 17. dxe5 {[%clk 0:01:30.8]} 17... fxe5 {[%clk 0:01:38.8]} 18.
Qg3 {[%clk 0:01:26]} 18... Qf6 {[%clk 0:01:29.8]} 19. Be2 {[%clk 0:01:22]} 19...
Bd6 {[%clk 0:01:24.9]} 20. e4 {[%clk 0:01:19.9]} 20... Be7 {[%clk 0:01:16.1]}
21. Rh1 {[%clk 0:01:10.2]} 21... dxe4 {[%clk 0:01:13.9]} 22. O-O-O {[%clk
0:01:08.1]} 22... Qf4 {[%clk 0:01:11.9]} 23. Qe3 {[%clk 0:00:58.7]} 23... Qxe3
{[%clk 0:01:06]} 24. fxe3 {[%clk 0:00:59.6]} 24... Bg5 {[%clk 0:01:06.4]} 25.
Nf1 {[%clk 0:00:59.8]} 25... Rxd1+ {[%clk 0:00:54.1]} 26. Kxd1 {[%clk
0:01:00.7]} 26... Rf8 {[%clk 0:00:53.3]} 27. Ke1 {[%clk 0:01:00.7]} 27... a6
{[%clk 0:00:48.8]} 28. Bh5 {[%clk 0:01:00.1]} 28... Bf5 {[%clk 0:00:42]} 29. Ke2
{[%clk 0:01:00.1]} 29... Bd7 {[%clk 0:00:39.4]} 30. Ng3 {[%clk 0:00:56.5]} 30...
Bb5+ {[%clk 0:00:36.3]} 31. c4 {[%clk 0:00:56.6]} 31... Bc6 {[%clk 0:00:37.2]}
32. Bg4 {[%clk 0:00:56.2]} 32... h6 {[%clk 0:00:37.4]} 33. Bf5 {[%clk
0:00:54.9]} 33... b5 {[%clk 0:00:33.5]} 34. Bxe4 {[%clk 0:00:52.2]} 34... bxc4
{[%clk 0:00:33.9]} 35. Bxc6 {[%clk 0:00:51.2]} 35... Kxc6 {[%clk 0:00:34.2]} 36.
bxc4 {[%clk 0:00:46.2]} 36... Rb8 {[%clk 0:00:34.3]} 37. Rd1 {[%clk 0:00:46.2]}
37... Rb4 {[%clk 0:00:33]} 38. Ne4 {[%clk 0:00:22.3]} 38... Rxc4 {[%clk
0:00:32.9]} 39. Rd6+ {[%clk 0:00:22.2]} 39... Kc7 {[%clk 0:00:33.3]} 40. Kd3
{[%clk 0:00:09.6]} 40... Rxe4 {[%clk 0:00:33.2]} 41. Rxa6 {[%clk 0:00:10.2]}
41... Rxe3+ {[%clk 0:00:33.2]} 42. Kc4 {[%clk 0:00:09.9]} 42... Re2 {[%clk
0:00:32.9]} 0-1

[Event "*** SCC Grand Prix: Titled Tuesday Blitz"]
[Site "Chess.com"]
[Date "2020.06.23"]
[Round "2"]
[White "iverichighladze"]
[Black "mjray79"]
[Result "1-0"]
[WhiteElo "2454"]
[BlackElo "2245"]
[TimeControl "180+1"]
[EndTime "10:18:25 PDT"]
[Termination "iverichighladze won by checkmate"]

1. d4 {[%clk 0:03:00.9]} 1... Nf6 {[%clk 0:02:59.1]} 2. c4 {[%clk 0:03:00.7]}
2... g6 {[%clk 0:02:59.5]} 3. Nc3 {[%clk 0:03:00]} 3... Bg7 {[%clk 0:03:00]} 4.
e4 {[%clk 0:02:59.8]} 4... d6 {[%clk 0:03:00.2]} 5. f3 {[%clk 0:02:58.8]} 5...
O-O {[%clk 0:03:00.5]} 6. Be3 {[%clk 0:02:58.6]} 6... c5 {[%clk 0:03:01]} 7.
dxc5 {[%clk 0:02:58.1]} 7... dxc5 {[%clk 0:03:01.9]} 8. Qxd8 {[%clk 0:02:58.1]}
8... Rxd8 {[%clk 0:03:02.3]} 9. Bxc5 {[%clk 0:02:58.6]} 9... Nc6 {[%clk
0:03:02.8]} 10. Nge2 {[%clk 0:02:58.3]} 10... Nd7 {[%clk 0:03:01]} 11. Be3
{[%clk 0:02:55.8]} 11... Nde5 {[%clk 0:02:58.7]} 12. Nf4 {[%clk 0:02:55.6]}
12... Na5 {[%clk 0:02:50.9]} 13. c5 {[%clk 0:02:46.9]} 13... Nac4 {[%clk
0:02:48.4]} 14. Bc1 {[%clk 0:02:40.1]} 14... e6 {[%clk 0:02:37.5]} 15. Bxc4
{[%clk 0:02:34.2]} 15... Nxc4 {[%clk 0:02:36.9]} 16. O-O {[%clk 0:02:33.6]}
16... Bd4+ {[%clk 0:02:35.7]} 17. Kh1 {[%clk 0:02:32.5]} 17... Bxc5 {[%clk
0:02:35.7]} 18. b3 {[%clk 0:02:32.1]} 18... Ne3 {[%clk 0:02:31.2]} 19. Bxe3
{[%clk 0:02:23.9]} 19... Bxe3 {[%clk 0:02:32.1]} 20. Nfe2 {[%clk 0:02:21.5]}
20... Bd7 {[%clk 0:02:31.6]} 21. Rfd1 {[%clk 0:02:16.6]} 21... Bc6 {[%clk
0:02:29.9]} 22. Rxd8+ {[%clk 0:02:10.6]} 22... Rxd8 {[%clk 0:02:30.8]} 23. Rd1
{[%clk 0:02:10.6]} 23... Rxd1+ {[%clk 0:02:30]} 24. Nxd1 {[%clk 0:02:10]} 24...
Bb6 {[%clk 0:02:28.6]} 25. Nb2 {[%clk 0:02:06.4]} 25... Kf8 {[%clk 0:02:26.3]}
26. Nc4 {[%clk 0:02:06.3]} 26... Bc5 {[%clk 0:02:25.3]} 27. Na5 {[%clk
0:02:02.5]} 27... e5 {[%clk 0:02:18.9]} 28. Nxc6 {[%clk 0:02:00.1]} 28... bxc6
{[%clk 0:02:19.8]} 29. g3 {[%clk 0:01:59.5]} 29... Ke7 {[%clk 0:02:19.8]} 30.
Kg2 {[%clk 0:01:59.8]} 30... Kd6 {[%clk 0:02:19.3]} 31. Nc1 {[%clk 0:01:57]}
31... Be3 {[%clk 0:02:06.6]} 32. Nd3 {[%clk 0:01:56.6]} 32... c5 {[%clk
0:02:06.5]} 33. f4 {[%clk 0:01:55.4]} 33... exf4 {[%clk 0:01:59.9]} 34. gxf4
{[%clk 0:01:54.5]} 34... f5 {[%clk 0:01:51.5]} 35. Kf3 {[%clk 0:01:53.4]} 35...
Bd4 {[%clk 0:01:46.8]} 36. e5+ {[%clk 0:01:41.8]} 36... Kd5 {[%clk 0:01:45.2]}
37. Nc1 {[%clk 0:01:24.5]} 37... g5 {[%clk 0:01:38.3]} 38. fxg5 {[%clk
0:01:09.8]} 38... Bxe5 {[%clk 0:01:35]} 39. h4 {[%clk 0:01:09.7]} 39... c4
{[%clk 0:01:34.3]} 40. bxc4+ {[%clk 0:01:08.4]} 40... Kxc4 {[%clk 0:01:35.2]}
41. Ke3 {[%clk 0:01:04]} 41... Bg3 {[%clk 0:01:03.7]} 42. h5 {[%clk 0:01:01.5]}
42... Bh4 {[%clk 0:01:03.5]} 43. g6 {[%clk 0:00:57.5]} 43... hxg6 {[%clk
0:01:03.8]} 44. hxg6 {[%clk 0:00:57.3]} 44... Bf6 {[%clk 0:00:46.2]} 45. Kf4
{[%clk 0:00:56.4]} 45... Bb2 {[%clk 0:00:42]} 46. Kxf5 {[%clk 0:00:54.7]} 46...
Kb4 {[%clk 0:00:40.4]} 47. Nd3+ {[%clk 0:00:53.3]} 47... Ka3 {[%clk 0:00:39.6]}
48. Nxb2 {[%clk 0:00:53.2]} 48... Kxb2 {[%clk 0:00:40.5]} 49. g7 {[%clk
0:00:53.4]} 49... a5 {[%clk 0:00:41.4]} 50. g8=Q {[%clk 0:00:53.6]} 50... a4
{[%clk 0:00:42.3]} 51. Qc4 {[%clk 0:00:52.3]} 51... a3 {[%clk 0:00:43.2]} 52.
Qb3+ {[%clk 0:00:51.5]} 52... Ka1 {[%clk 0:00:42.9]} 53. Qxa3 {[%clk 0:00:50.1]}
53... Kb1 {[%clk 0:00:43]} 54. Qb3+ {[%clk 0:00:49]} 54... Ka1 {[%clk
0:00:42.2]} 55. Qa4 {[%clk 0:00:46.8]} 55... Kb1 {[%clk 0:00:40.9]} 56. a3
{[%clk 0:00:46.6]} 56... Ka1 {[%clk 0:00:40.5]} 57. Qb4 {[%clk 0:00:46.2]} 57...
Ka2 {[%clk 0:00:40.6]} 58. a4 {[%clk 0:00:46.6]} 58... Ka1 {[%clk 0:00:41.5]}
59. a5 {[%clk 0:00:47]} 59... Ka2 {[%clk 0:00:42.4]} 60. a6 {[%clk 0:00:47.4]}
60... Ka1 {[%clk 0:00:43.3]} 61. a7 {[%clk 0:00:47.8]} 61... Ka2 {[%clk
0:00:44.2]} 62. a8=Q# {[%clk 0:00:47.9]} 1-0

[Event "*** SCC Grand Prix: Titled Tuesday Blitz"]
[Site "Chess.com"]
[Date "2020.06.23"]
[Round "2"]
[White "Andreikka"]
[Black "francyIM"]
[Result "1-0"]
[WhiteElo "2942"]
[BlackElo "2597"]
[TimeControl "180+1"]
[EndTime "10:18:26 PDT"]
[Termination "Andreikka won by resignation"]

1. c4 {[%clk 0:03:00.9]} 1... Nf6 {[%clk 0:02:52.1]} 2. Nc3 {[%clk 0:03:00.2]}
2... e5 {[%clk 0:02:51.1]} 3. Nf3 {[%clk 0:03:00.4]} 3... Nc6 {[%clk 0:02:49.6]}
4. e4 {[%clk 0:03:00.9]} 4... Bc5 {[%clk 0:02:47.7]} 5. Nxe5 {[%clk 0:03:00.7]}
5... Nxe5 {[%clk 0:02:48.5]} 6. d4 {[%clk 0:03:01.2]} 6... Bb4 {[%clk
0:02:49.1]} 7. dxe5 {[%clk 0:03:01.1]} 7... Nxe4 {[%clk 0:02:49.6]} 8. Qf3
{[%clk 0:03:01.5]} 8... Nxc3 {[%clk 0:02:49]} 9. bxc3 {[%clk 0:03:02.4]} 9...
Ba5 {[%clk 0:02:49.6]} 10. Bf4 {[%clk 0:03:03]} 10... O-O {[%clk 0:02:47.7]} 11.
O-O-O {[%clk 0:03:02.8]} 11... Qe7 {[%clk 0:02:41.7]} 12. Kb2 {[%clk 0:03:01]}
12... Rb8 {[%clk 0:02:41.8]} 13. Qe3 {[%clk 0:03:00.9]} 13... b5 {[%clk
0:02:40]} 14. c5 {[%clk 0:03:00.2]} 14... b4 {[%clk 0:02:39.1]} 15. c4 {[%clk
0:03:00.8]} 15... b3 {[%clk 0:02:31.3]} 16. a3 {[%clk 0:03:01.2]} 16... f6
{[%clk 0:02:27]} 17. Bd3 {[%clk 0:02:12.4]} 17... fxe5 {[%clk 0:01:37.5]} 18.
Bxe5 {[%clk 0:02:09.7]} 18... Re8 {[%clk 0:01:29.6]} 19. Bd4 {[%clk 0:01:56.4]}
19... Qxe3 {[%clk 0:01:21.1]} 20. Bxe3 {[%clk 0:01:57.3]} 20... Bb7 {[%clk
0:01:21]} 21. Bf5 {[%clk 0:01:52.4]} 21... d6 {[%clk 0:00:52.1]} 22. cxd6 {[%clk
0:01:26.4]} 22... cxd6 {[%clk 0:00:48.6]} 23. Rd3 {[%clk 0:01:07.1]} 23... Bb6
{[%clk 0:00:44.6]} 24. Bxb6 {[%clk 0:00:49.9]} 24... Re2+ {[%clk 0:00:42.7]} 25.
Kxb3 {[%clk 0:00:47.7]} 25... Bxg2 {[%clk 0:00:41.8]} 26. Rg1 {[%clk 0:00:43.7]}
26... Rxb6+ {[%clk 0:00:41.1]} 27. Kc3 {[%clk 0:00:44]} 27... Rxf2 {[%clk
0:00:40.8]} 28. Be6+ {[%clk 0:00:44.4]} 28... Kf8 {[%clk 0:00:39.7]} 29. Rg3
{[%clk 0:00:37.8]} 29... Rbb2 {[%clk 0:00:32.9]} 30. Rd3 {[%clk 0:00:23.3]}
30... Ke7 {[%clk 0:00:20.6]} 31. Bg4 {[%clk 0:00:20.5]} 31... Be4 {[%clk
0:00:19.9]} 32. Re1 {[%clk 0:00:19.5]} 32... Rbc2+ {[%clk 0:00:12.5]} 33. Kd4
{[%clk 0:00:18.4]} 33... d5 {[%clk 0:00:10.1]} 34. cxd5 {[%clk 0:00:16.8]} 34...
Kd6 {[%clk 0:00:09.8]} 35. Rxe4 {[%clk 0:00:17.1]} 1-0

[Event "*** SCC Grand Prix: Titled Tuesday Blitz"]
[Site "Chess.com"]
[Date "2020.06.23"]
[Round "2"]
[White "shnitez"]
[Black "Evgeny81"]
[Result "0-1"]
[WhiteElo "2519"]
[BlackElo "2789"]
[TimeControl "180+1"]
[EndTime "10:18:26 PDT"]
[Termination "Evgeny81 won on time"]

1. d4 {[%clk 0:03:00.9]} 1... Nf6 {[%clk 0:02:59.4]} 2. c4 {[%clk 0:03:00.5]}
2... e5 {[%clk 0:02:59.8]} 3. dxe5 {[%clk 0:03:00]} 3... Ne4 {[%clk 0:03:00.1]}
4. Nd2 {[%clk 0:02:36.5]} 4... Nc5 {[%clk 0:02:59.8]} 5. Ngf3 {[%clk 0:02:23.3]}
5... Nc6 {[%clk 0:02:59.2]} 6. a3 {[%clk 0:02:14]} 6... a5 {[%clk 0:02:57.3]} 7.
g3 {[%clk 0:02:05.3]} 7... d6 {[%clk 0:02:45]} 8. exd6 {[%clk 0:02:00.5]} 8...
Qxd6 {[%clk 0:02:44.8]} 9. Bg2 {[%clk 0:01:58.4]} 9... Bf5 {[%clk 0:02:42.1]}
10. O-O {[%clk 0:01:55.3]} 10... O-O-O {[%clk 0:02:40.8]} 11. b4 {[%clk
0:01:27.6]} 11... Ne4 {[%clk 0:02:38]} 12. Qb3 {[%clk 0:01:10.8]} 12... a4
{[%clk 0:02:06.2]} 13. Qb2 {[%clk 0:01:01.2]} 13... Be7 {[%clk 0:02:03.3]} 14.
Nxe4 {[%clk 0:00:59.9]} 14... Bxe4 {[%clk 0:02:03]} 15. Bf4 {[%clk 0:00:57.9]}
15... Bf6 {[%clk 0:01:57.9]} 16. Bxd6 {[%clk 0:00:49.8]} 16... Bxb2 {[%clk
0:01:57.3]} 17. Ra2 {[%clk 0:00:49.6]} 17... Bf6 {[%clk 0:01:41.4]} 18. Bf4
{[%clk 0:00:49.5]} 18... Rhe8 {[%clk 0:01:35.2]} 19. Bg5 {[%clk 0:00:36.8]}
19... Bxf3 {[%clk 0:01:26]} 20. Bh3+ {[%clk 0:00:34.4]} 20... Kb8 {[%clk
0:01:25.7]} 21. Bxf6 {[%clk 0:00:34.6]} 21... Bxe2 {[%clk 0:01:17.7]} 22. Bxd8
{[%clk 0:00:33.7]} 22... Bxc4 {[%clk 0:01:12.6]} 23. Bxc7+ {[%clk 0:00:26.5]}
23... Kxc7 {[%clk 0:01:11.6]} 24. Rc2 {[%clk 0:00:27.4]} 24... Bxf1 {[%clk
0:01:10.1]} 25. Kxf1 {[%clk 0:00:28.3]} 25... Kb6 {[%clk 0:01:02.4]} 26. Bd7
{[%clk 0:00:27.4]} 26... Re5 {[%clk 0:00:59.8]} 27. Bxc6 {[%clk 0:00:27.5]}
27... bxc6 {[%clk 0:01:00.7]} 28. Rc3 {[%clk 0:00:23.1]} 28... c5 {[%clk
0:00:53.8]} 29. bxc5+ {[%clk 0:00:22.1]} 29... Rxc5 {[%clk 0:00:54.7]} 30. Rf3
{[%clk 0:00:22.4]} 30... f6 {[%clk 0:00:51.6]} 31. h4 {[%clk 0:00:21.9]} 31...
Rb5 {[%clk 0:00:42.5]} 32. Re3 {[%clk 0:00:21.4]} 32... Rb3 {[%clk 0:00:41.4]}
33. Re7 {[%clk 0:00:21.3]} 33... Rxa3 {[%clk 0:00:38.6]} 34. Rxg7 {[%clk
0:00:21.5]} 34... Rc3 {[%clk 0:00:36.2]} 35. Rg8 {[%clk 0:00:12.8]} 35... Rc7
{[%clk 0:00:31.4]} 36. Rd8 {[%clk 0:00:06.7]} 36... a3 {[%clk 0:00:29.2]} 37.
Rd1 {[%clk 0:00:04.8]} 37... Kb5 {[%clk 0:00:26.2]} 0-1

[Event "*** SCC Grand Prix: Titled Tuesday Blitz"]
[Site "Chess.com"]
[Date "2020.06.23"]
[Round "2"]
[White "kuba2006"]
[Black "olksuna"]
[Result "1-0"]
[WhiteElo "2339"]
[BlackElo "2595"]
[TimeControl "180+1"]
[EndTime "10:18:27 PDT"]
[Termination "kuba2006 won by checkmate"]

1. e4 {[%clk 0:03:00.9]} 1... d6 {[%clk 0:02:59.6]} 2. d4 {[%clk 0:03:00.4]}
2... Nf6 {[%clk 0:03:00.3]} 3. Nc3 {[%clk 0:02:59.8]} 3... c6 {[%clk 0:03:00.9]}
4. f3 {[%clk 0:02:59]} 4... e5 {[%clk 0:02:58.8]} 5. Be3 {[%clk 0:02:58.7]} 5...
Be7 {[%clk 0:02:57.6]} 6. Nge2 {[%clk 0:02:58.3]} 6... O-O {[%clk 0:02:57.7]} 7.
Qd2 {[%clk 0:02:58.1]} 7... exd4 {[%clk 0:02:56.2]} 8. Nxd4 {[%clk 0:02:57.5]}
8... d5 {[%clk 0:02:56.7]} 9. exd5 {[%clk 0:02:46]} 9... Nxd5 {[%clk 0:02:57.6]}
10. Nxd5 {[%clk 0:02:43.8]} 10... Qxd5 {[%clk 0:02:58.5]} 11. Nb3 {[%clk
0:02:39.2]} 11... Qxd2+ {[%clk 0:02:55.7]} 12. Bxd2 {[%clk 0:02:31.5]} 12... Bf6
{[%clk 0:02:56.6]} 13. O-O-O {[%clk 0:02:30.7]} 13... Nd7 {[%clk 0:02:50.3]} 14.
g4 {[%clk 0:02:26.7]} 14... Ne5 {[%clk 0:02:42.5]} 15. Be2 {[%clk 0:02:25.7]}
15... Ng6 {[%clk 0:02:34.9]} 16. f4 {[%clk 0:02:20.6]} 16... Re8 {[%clk
0:02:30.4]} 17. g5 {[%clk 0:01:34]} 17... Bxb2+ {[%clk 0:02:24.9]} 18. Kxb2
{[%clk 0:01:31.9]} 18... Rxe2 {[%clk 0:02:25.8]} 19. h4 {[%clk 0:01:21.9]} 19...
Bg4 {[%clk 0:02:21.9]} 20. h5 {[%clk 0:01:16.5]} 20... Ne7 {[%clk 0:02:18.5]}
21. h6 {[%clk 0:01:16.6]} 21... Nd5 {[%clk 0:01:56.2]} 22. hxg7 {[%clk
0:01:10.1]} 22... Rae8 {[%clk 0:01:51.1]} 23. Rh4 {[%clk 0:00:44.6]} 23... Bf3
{[%clk 0:01:06.8]} 24. Nd4 {[%clk 0:00:40.3]} 24... Rf2 {[%clk 0:00:56.8]} 25.
Nxf3 {[%clk 0:00:38.4]} 25... Rxf3 {[%clk 0:00:57.7]} 26. Rdh1 {[%clk
0:00:37.1]} 26... Kxg7 {[%clk 0:00:57.8]} 27. Rxh7+ {[%clk 0:00:35.5]} 27... Kf8
{[%clk 0:00:55]} 28. Rh8+ {[%clk 0:00:30.6]} 28... Ke7 {[%clk 0:00:54.5]} 29.
Re1+ {[%clk 0:00:30]} 29... Kd6 {[%clk 0:00:47.9]} 30. Rhxe8 {[%clk 0:00:27.1]}
30... Rf2 {[%clk 0:00:48.6]} 31. R1e2 {[%clk 0:00:26]} 31... Rf1 {[%clk
0:00:27.8]} 32. c4 {[%clk 0:00:25.4]} 32... Nb6 {[%clk 0:00:25.4]} 33. Kb3
{[%clk 0:00:14.9]} 33... Nd7 {[%clk 0:00:22.4]} 34. Bb4+ {[%clk 0:00:13.9]}
34... c5 {[%clk 0:00:22.5]} 35. Rd2+ {[%clk 0:00:13.7]} 35... Kc6 {[%clk
0:00:21.4]} 36. Rc8+ {[%clk 0:00:13]} 36... Kb6 {[%clk 0:00:21.9]} 37. Rxd7
{[%clk 0:00:12.2]} 37... cxb4 {[%clk 0:00:22.1]} 38. Rd6+ {[%clk 0:00:11.8]}
38... Ka5 {[%clk 0:00:21.2]} 39. Rc5+ {[%clk 0:00:12.2]} 39... b5 {[%clk
0:00:20.6]} 40. Rxb5# {[%clk 0:00:13.1]} 1-0

[Event "*** SCC Grand Prix: Titled Tuesday Blitz"]
[Site "Chess.com"]
[Date "2020.06.23"]
[Round "2"]
[White "Sadykov_Ramil"]
[Black "Ginger_GM"]
[Result "0-1"]
[WhiteElo "2397"]
[BlackElo "2665"]
[TimeControl "180+1"]
[EndTime "10:18:28 PDT"]
[Termination "Ginger_GM won by checkmate"]

1. e4 {[%clk 0:03:00.9]} 1... e6 {[%clk 0:02:58.9]} 2. d4 {[%clk 0:03:00.4]}
2... d5 {[%clk 0:02:58.2]} 3. Nc3 {[%clk 0:02:59.2]} 3... Nf6 {[%clk 0:02:57.4]}
4. Bg5 {[%clk 0:02:58.6]} 4... Be7 {[%clk 0:02:56.9]} 5. Bxf6 {[%clk 0:02:58.2]}
5... Bxf6 {[%clk 0:02:55.2]} 6. Nf3 {[%clk 0:02:58.4]} 6... c5 {[%clk
0:02:52.6]} 7. exd5 {[%clk 0:02:38.6]} 7... exd5 {[%clk 0:02:44.7]} 8. dxc5
{[%clk 0:02:34.7]} 8... O-O {[%clk 0:02:37.6]} 9. Be2 {[%clk 0:02:32.1]} 9...
Be6 {[%clk 0:02:24.5]} 10. O-O {[%clk 0:02:28]} 10... Qa5 {[%clk 0:02:04.2]} 11.
Nxd5 {[%clk 0:01:57.4]} 11... Bxb2 {[%clk 0:02:03.5]} 12. Rb1 {[%clk 0:01:57.2]}
12... Qxc5 {[%clk 0:02:01.8]} 13. Nf4 {[%clk 0:01:40.7]} 13... Bc3 {[%clk
0:01:32.9]} 14. Nxe6 {[%clk 0:01:38.5]} 14... fxe6 {[%clk 0:01:32.9]} 15. Rxb7
{[%clk 0:01:38.1]} 15... Qc6 {[%clk 0:01:10.4]} 16. Rb3 {[%clk 0:01:34.5]} 16...
Bf6 {[%clk 0:01:01.9]} 17. Nd4 {[%clk 0:01:27]} 17... Bxd4 {[%clk 0:01:00.7]}
18. Qxd4 {[%clk 0:01:25.3]} 18... Qxc2 {[%clk 0:00:43]} 19. Bf3 {[%clk
0:01:03.9]} 19... Nc6 {[%clk 0:00:42.1]} 20. Qd6 {[%clk 0:00:40.1]} 20... Rac8
{[%clk 0:00:36.6]} 21. Qxe6+ {[%clk 0:00:39.3]} 21... Kh8 {[%clk 0:00:36.4]} 22.
Rb7 {[%clk 0:00:32.3]} 22... Nd4 {[%clk 0:00:28.2]} 23. Qe5 {[%clk 0:00:24.3]}
23... Nxf3+ {[%clk 0:00:27.9]} 24. gxf3 {[%clk 0:00:24]} 24... Qg6+ {[%clk
0:00:28.4]} 25. Qg3 {[%clk 0:00:24]} 25... Qf6 {[%clk 0:00:22.7]} 26. Rxa7
{[%clk 0:00:22.9]} 26... Rc5 {[%clk 0:00:22.7]} 27. f4 {[%clk 0:00:21.9]} 27...
Rc4 {[%clk 0:00:22.2]} 28. f5 {[%clk 0:00:19]} 28... h5 {[%clk 0:00:18.5]} 29.
h3 {[%clk 0:00:17]} 29... Rc5 {[%clk 0:00:17.2]} 30. Ra4 {[%clk 0:00:15.7]}
30... Rxf5 {[%clk 0:00:16.9]} 31. h4 {[%clk 0:00:15.4]} 31... Kh7 {[%clk
0:00:15.4]} 32. Kg2 {[%clk 0:00:15.1]} 32... Rf3 {[%clk 0:00:15.3]} 33. Qg5
{[%clk 0:00:15.1]} 33... Qf7 {[%clk 0:00:14.3]} 34. Ra5 {[%clk 0:00:14.2]} 34...
Rxf2+ {[%clk 0:00:14.5]} 35. Rxf2 {[%clk 0:00:13.9]} 35... Qxf2+ {[%clk
0:00:14.7]} 36. Kh1 {[%clk 0:00:13.7]} 36... Qf1+ {[%clk 0:00:14.9]} 37. Qg1
{[%clk 0:00:12.8]} 37... Qh3+ {[%clk 0:00:14.7]} 38. Qh2 {[%clk 0:00:13.1]}
38... Rf1# {[%clk 0:00:14.7]} 0-1